bitfinex/quotes_SOLUSD_20241111
["timestamp","ask_amount","ask_price","bid_price","bid_amount"]
[1731338122553,23.84802411,219.69,219.66,20.0]
[1731338122743,23.84802411,219.69,219.62,23.1872]
[1731338123057,23.84802411,219.73,219.66,20.0]
[1731338123258,1.29421064,219.83,219.66,20.0]
[1731338123259,23.84802411,219.77,219.69,23.84802411]
[1731338123448,23.84802411,219.77,219.7,20.0]
[1731338123756,16.6729,219.9,219.67,15.24845884]
[1731338123757,23.84802411,219.82,219.72,20.0]
[1731338123964,8.87727285,219.81,219.74,20.0]
[1731338124257,23.84802411,219.82,219.75,23.84802411]
[1731338124435,23.84802411,219.82,219.76,20.0]
[1731338124843,23.84802411,219.84,219.76,20.0]
[1731338125054,23.84802411,219.86,219.78,23.185]
[1731338125433,22.97748155,219.88,219.8,20.0]
[1731338125851,23.84802411,219.86,219.8,20.0]
[1731338126045,23.84802411,219.88,219.8,20.0]
[1731338126857,23.84802411,219.86,219.8,20.0]
[1731338127157,23.84802411,219.86,219.81,3.1844]
[1731338128343,23.84802411,219.9,219.82,23.84802411]
[1731338128644,23.84802411,219.94,219.87,20.0]
[1731338128968,23.84802411,219.88,219.87,20.0]
[1731338129149,23.84802411,219.88,219.83,20.0]
[1731338129345,23.84802411,219.86,219.83,20.0]
[1731338129961,23.84802411,219.84,219.83,20.0]
[1731338130174,23.84802411,219.84,219.82,3.1843]
[1731338130465,23.84802411,219.84,219.82,2.2745]
[1731338131062,23.84802411,219.84,219.76,2.2751]
[1731338131063,47.69604822,219.84,219.76,2.2751]
[1731338131266,23.84802411,219.77,219.71,0.9102]
[1731338131441,23.84802411,219.73,219.71,0.9102]
[1731338131648,23.84802411,219.77,219.71,3.1858]
[1731338132061,23.84802411,219.75,219.71,3.1858]
[1731338132853,23.84802411,219.73,219.71,3.1858]
[1731338133056,24.04802411,219.84,219.71,7.7372]
[1731338133057,23.84802411,219.77,219.71,7.7372]
[1731338133370,4.5472,219.92,219.75,23.84802411]
[1731338133575,23.84802411,219.85,219.77,23.84802411]
[1731338133756,23.84802411,219.87,219.8,23.84802411]
[1731338134270,23.84802411,219.85,219.79,20.0]
[1731338134563,23.84802411,219.85,219.81,20.0]
[1731338134755,23.84802411,219.83,219.81,20.0]
[1731338135752,23.84802411,219.83,219.72,14.81454735]
[1731338135948,23.84802411,219.81,219.75,7.9633]
[1731338136768,23.84802411,219.79,219.75,7.9633]
[1731338136971,23.84802411,219.77,219.75,7.9633]
[1731338137166,23.84802411,219.79,219.76,20.0]
[1731338137467,23.84802411,219.77,219.75,7.9633]
[1731338137853,23.84802411,219.79,219.75,7.9633]
[1731338138073,23.84802411,219.77,219.75,7.9633]
[1731338138366,4.5476,219.9,219.75,7.9633]
[1731338138367,23.84802411,219.79,219.75,7.9633]
[1731338138672,23.84802411,219.79,219.76,20.0]
[1731338139580,23.84802411,219.79,219.78,20.0]
[1731338139867,23.84802411,219.79,219.77,11.1479]
[1731338140171,4.6491,219.83,219.72,11.1502]
[1731338140353,23.84802411,219.76,219.72,11.1502]
[1731338140749,23.84802411,219.74,219.72,11.1502]
[1731338141067,23.84802411,219.73,219.72,11.1502]
[1731338141662,23.84802411,219.73,219.68,1.31850874]
[1731338141977,23.84802411,219.84,219.67,11.1529]
[1731338141978,23.84802411,219.69,219.67,11.1529]
[1731338143365,23.84802411,219.69,219.68,20.0]
[1731338143552,23.84802411,219.69,219.67,11.1529]
[1731338143866,23.84802411,219.69,219.54,0.2]
[1731338143867,28.50002411,219.69,219.63,1.31185356]
[1731338144067,23.84802411,219.64,219.62,11.1553]
[1731338144276,23.84802411,219.63,219.57,7.9698]
[1731338144569,23.84802411,219.58,219.52,7.9717]
[1731338144770,23.84802411,219.53,219.52,7.9717]
[1731338144947,23.84802411,219.53,219.5,3.189]
[1731338145147,23.84802411,219.53,219.47,11.1631]
[1731338145461,23.84802411,219.62,219.52,23.84802411]
[1731338145655,23.84802411,219.62,219.55,23.84802411]
[1731338145858,23.84802411,219.62,219.56,9.16565884]
[1731338146047,23.84802411,219.58,219.53,5.64888851]
[1731338146375,23.84802411,219.58,219.49,23.84802411]
[1731338146551,23.84802411,219.6,219.53,33.01368295]
[1731338146748,23.84802411,219.62,219.54,9.16565884]
[1731338146948,6.1254,219.79,219.61,23.84802411]
[1731338147173,23.84802411,219.74,219.65,23.84802411]
[1731338147355,23.84802411,219.74,219.66,20.0]
[1731338147664,23.84802411,219.76,219.68,20.0]
[1731338147850,4.5469,219.93,219.75,23.84802411]
[1731338148048,23.84802411,219.82,219.76,20.0]
[1731338148245,23.84802411,219.82,219.76,19.5]
[1731338148646,23.84802411,219.82,219.73,23.84802411]
[1731338148851,38.70893303,219.82,219.75,23.8906]
[1731338149858,38.70893303,219.8,219.75,23.8906]
[1731338150065,38.70893303,219.82,219.75,23.8906]
[1731338150381,38.70893303,219.82,219.76,20.0]
[1731338150870,38.70893303,219.8,219.76,20.0]
[1731338151061,38.70893303,219.78,219.77,11.1479]
[1731338151264,38.70893303,219.78,219.77,7.9628]
[1731338151679,38.70893303,219.78,219.77,11.1479]
[1731338152269,38.70893303,219.78,219.77,31.1479]
[1731338152963,38.70893303,219.78,219.77,11.1479]
[1731338153166,38.70893303,219.78,219.71,7.9647]
[1731338153353,38.70893303,219.72,219.61,38.70893303]
[1731338153554,38.70893303,219.72,219.66,7.9667]
[1731338153773,6.2313,219.83,219.67,6.22494279]
[1731338153774,38.70893303,219.7,219.67,6.22494279]
[1731338153975,38.70893303,219.7,219.66,7.9667]
[1731338154183,0.1,219.83,219.66,7.9667]
[1731338154184,38.70893303,219.72,219.66,7.9667]
[1731338155153,38.70893303,219.7,219.66,7.9667]
[1731338155689,38.70893303,219.68,219.66,7.9667]
[1731338155863,38.70893303,219.68,219.61,7.9684]
[1731338156470,38.70893303,219.68,219.61,17.13405884]
[1731338156652,38.70893303,219.68,219.62,9.16565884]
[1731338157163,38.70893303,219.68,219.63,11.155]
[1731338158475,38.70893303,219.71,219.64,20.0]
[1731338158859,38.70893303,219.69,219.64,20.0]
[1731338159075,38.70893303,219.69,219.62,20.0]
[1731338159658,38.70893303,219.69,219.61,58.70893303]
[1731338160077,38.70893303,219.71,219.64,20.0]
[1731338160260,38.70893303,219.69,219.61,58.70893303]
[1731338160457,38.70893303,219.73,219.65,38.70893303]
[1731338160673,38.70893303,219.76,219.68,20.0]
[1731338160857,38.70893303,219.74,219.68,20.0]
[1731338161056,38.70893303,219.72,219.68,20.0]
[1731338161266,38.70893303,219.72,219.64,23.187]
[1731338161468,38.70893303,219.7,219.64,3.187]
[1731338161867,38.70893303,219.65,219.64,11.1545]
[1731338162156,38.70893303,219.65,219.54,11.1592]
[1731338162355,38.70893303,219.57,219.54,11.1592]
[1731338162575,38.70893303,219.56,219.52,3.1887]
[1731338163078,38.70893303,219.56,219.51,7.9723]
[1731338163268,38.70893303,219.58,219.51,7.9723]
[1731338163662,38.70893303,219.58,219.52,20.0]
[1731338164564,38.70893303,219.6,219.52,20.0]
[1731338164771,4.6523,219.67,219.54,38.70893303]
[1731338164772,38.70893303,219.62,219.54,38.70893303]
[1731338164966,38.70893303,219.64,219.57,20.0]
[1731338165167,0.1,219.74,219.56,48.27343303]
[1731338165168,38.70893303,219.68,219.59,20.0]
[1731338165370,38.70893303,219.68,219.6,38.70893303]
[1731338165566,38.70893303,219.64,219.61,20.0]
[1731338165773,38.70893303,219.66,219.61,20.0]
[1731338166079,38.70893303,219.64,219.57,20.0]
[1731338166277,38.70893303,219.66,219.59,20.0]
[1731338166468,38.70893303,219.62,219.59,20.0]
[1731338167178,38.70893303,219.6,219.57,22.7325]
[1731338167385,38.70893303,219.57,219.52,20.0]
[1731338167681,38.70893303,219.57,219.51,6.8332]
[1731338167682,38.70893303,219.59,219.51,45.54213303]
[1731338167893,4.5518,219.7,219.51,6.8332]
[1731338168096,38.70893303,219.66,219.59,38.70893303]
[1731338168292,38.70893303,219.72,219.63,38.70893303]
[1731338168462,0.1,219.74,219.52,8.29899217]
[1731338168463,38.70893303,219.68,219.52,8.29899217]
[1731338168664,38.70893303,219.7,219.61,38.70893303]
[1731338168864,38.70893303,219.68,219.53,20.0]
[1731338169182,38.70893303,219.68,219.6,20.0]
[1731338169482,38.70893303,219.66,219.6,20.0]
[1731338169681,38.70893303,219.68,219.6,20.0]
[1731338169881,38.70893303,219.66,219.58,20.0]
[1731338170181,38.70893303,219.72,219.57,38.70893303]
[1731338170182,38.70893303,219.65,219.57,38.70893303]
[1731338170383,38.70893303,219.65,219.58,20.0]
[1731338170584,38.70893303,219.67,219.6,20.0]
[1731338170768,38.70893303,219.69,219.61,38.70893303]
[1731338170963,38.70893303,219.69,219.62,20.0]
[1731338171278,38.70893303,219.65,219.62,22.7319]
[1731338171501,38.70893303,219.71,219.62,68.27073303]
[1731338171782,38.70893303,219.73,219.65,20.0]
[1731338171957,22.5196,219.83,219.65,20.0]
[1731338171958,38.70893303,219.8,219.7,38.70893303]
[1731338172158,4.5482,219.87,219.75,20.0]
[1731338172361,38.70893303,219.83,219.75,58.70893303]
[1731338172666,39.70893303,219.88,219.75,8.29899217]
[1731338172868,5.548,219.88,219.78,20.0]
[1731338173265,38.70893303,219.86,219.8,20.0]
[1731338173466,38.70893303,219.84,219.79,6.8246]
[1731338173797,38.70893303,219.86,219.8,20.0]
[1731338175183,39.70893303,219.88,219.82,20.0]
[1731338175889,38.70893303,219.86,219.82,20.0]
[1731338176183,38.70893303,219.84,219.78,20.0]
[1731338176381,38.70893303,219.82,219.77,20.0]
[1731338176595,38.70893303,219.82,219.77,2.73]
[1731338176767,38.70893303,219.78,219.73,2.7305]
[1731338176969,38.70893303,219.78,219.71,13.0887]
[1731338176970,38.70893303,219.74,219.71,6.8269]
[1731338177693,38.70893303,219.74,219.69,2.7311]
[1731338178067,38.70893303,219.72,219.67,2.7312]
[1731338178294,38.70893303,219.7,219.66,6.8285]
[1731338178482,38.70893303,219.7,219.66,9.5599]
[1731338178678,38.70893303,219.68,219.64,2.7316]
[1731338178983,38.70893303,219.72,219.64,2.7316]
[1731338179191,38.70893303,219.74,219.66,38.70893303]
[1731338179387,38.70893303,219.82,219.72,38.70893303]
[1731338179689,31.5100286,219.82,219.74,38.70893303]
[1731338179873,31.5100286,219.82,219.75,20.0]
[1731338181190,31.5100286,219.82,219.77,20.0]
[1731338181493,38.70893303,219.84,219.77,20.0]
[1731338182465,38.70893303,219.86,219.78,38.70893303]
[1731338182789,38.70893303,219.86,219.79,20.0]
[1731338183164,38.70893303,219.86,219.8,9.554]
[1731338183368,39.70893303,219.88,219.81,20.0]
[1731338183578,38.70893303,219.84,219.81,20.0]
[1731338183786,38.70893303,219.82,219.81,20.0]
[1731338183991,38.70893303,219.84,219.79,9.5544]
[1731338184177,38.70893303,219.84,219.8,20.0]
[1731338184588,38.70893303,219.82,219.79,9.5544]
[1731338184890,38.70893303,219.84,219.79,9.5544]
[1731338185073,39.70893303,219.88,219.8,38.70893303]
[1731338185272,38.70893303,219.86,219.79,9.5544]
[1731338186085,39.70893303,219.88,219.8,58.70893303]
[1731338186873,1.0,219.88,219.8,58.70893303]
[1731338187070,1.0,219.88,219.84,38.70893303]
[1731338187269,1.0,219.88,219.85,20.0]
[1731338187964,1.0,219.88,219.83,20.0]
[1731338188184,1.0,219.88,219.82,20.0]
[1731338188877,39.70893303,219.88,219.82,20.0]
[1731338189084,39.70893303,219.88,219.84,20.0]
[1731338189592,1.0,219.88,219.84,20.0]
[1731338189772,1.0,219.88,219.87,20.0]
[1731338190580,1.0,219.88,219.87,58.70893303]
[1731338190787,1.31746808,219.98,219.89,20.0]
[1731338190991,4.544,220.07,220.02,118.67359889]
[1731338191286,38.70893303,220.03,219.95,31.1388]
[1731338191497,38.70893303,220.05,219.98,38.70893303]
[1731338191688,38.70893303,220.07,220.01,20.0]
[1731338192373,38.70893303,220.11,220.04,38.70893303]
[1731338192691,38.70893303,220.15,220.07,20.0]
[1731338192902,38.70893303,220.15,220.03,15.9572]
[1731338192903,38.70893303,220.15,220.09,20.0]
[1731338193409,6.7168,220.26,220.11,20.0]
[1731338193410,7.92245891,220.14,220.11,20.0]
[1731338193569,38.70893303,220.17,220.11,20.0]
[1731338193925,6.6168,220.26,220.03,15.9572]
[1731338193926,38.70893303,220.13,220.03,19.1385]
[1731338194100,38.80893303,220.2,220.03,19.1385]
[1731338194101,38.70893303,220.08,220.04,23.1812]
[1731338194474,38.70893303,220.08,220.04,31.134]
[1731338194672,38.70893303,220.12,220.04,69.84293303]
[1731338194872,38.70893303,220.12,220.04,31.134]
[1731338195090,38.70893303,220.2,220.04,31.134]
[1731338195091,38.70893303,220.06,220.04,20.0]
[1731338195293,38.70893303,220.06,220.01,9.1582]
[1731338195506,38.70893303,220.08,220.01,15.976]
[1731338195797,38.70893303,220.1,220.02,38.70893303]
[1731338196003,38.70893303,220.08,220.01,15.976]
[1731338196174,38.70893303,220.06,220.01,6.8178]
[1731338196378,4.6426,220.14,219.99,2.7273]
[1731338196379,38.70893303,220.04,219.99,2.7273]
[1731338197285,38.70893303,220.04,219.97,9.5467]
[1731338197487,38.70893303,220.06,219.97,9.5467]
[1731338197685,38.70893303,220.08,219.98,38.70893303]
[1731338197883,38.70893303,220.08,219.99,20.0]
[1731338198284,0.1,219.99,219.97,6.8191]
[1731338198492,38.70893303,219.98,219.9,2.7284]
[1731338198678,38.70893303,219.93,219.88,9.1393]
[1731338199199,0.2,220.04,219.88,54.67013303]
[1731338199200,38.70893303,219.95,219.88,54.67013303]
[1731338199384,38.70893303,219.95,219.88,15.9612]
[1731338199579,38.70893303,219.91,219.82,60.73263303]
[1731338199902,4.5458,219.98,219.82,60.73263303]
[1731338199903,38.70893303,219.92,219.84,2.7292]
[1731338200107,38.70893303,219.9,219.83,6.8233]
[1731338200285,38.70893303,219.84,219.76,6.2163]
[1731338200485,38.70893303,219.8,219.76,6.2163]
[1731338200683,38.70893303,219.82,219.76,6.2163]
[1731338201523,0.1,219.9,219.76,6.2163]
[1731338201795,38.70893303,219.81,219.77,9.5554]
[1731338201997,38.70893303,219.79,219.75,2.7303]
[1731338202300,38.70893303,219.81,219.75,9.5562]
[1731338202502,38.70893303,219.87,219.77,38.70893303]
[1731338202809,0.1,219.95,219.75,9.5562]
[1731338202810,38.70893303,219.85,219.75,48.26513303]
[1731338203377,38.70893303,219.85,219.75,61.91693303]
[1731338203611,38.70893303,219.81,219.75,9.5562]
[1731338203775,38.70893303,219.83,219.75,9.5562]
[1731338204094,38.70893303,219.85,219.75,48.26513303]
[1731338204489,38.70893303,219.87,219.79,38.70893303]
[1731338205095,38.70893303,219.85,219.76,20.0]
[1731338205305,38.70893303,219.85,219.78,20.0]
[1731338205684,38.70893303,219.85,219.8,20.0]
[1731338205995,38.70893303,219.83,219.8,20.0]
[1731338206192,38.70893303,219.81,219.8,20.0]
[1731338206499,38.70893303,219.81,219.74,11.1492]
[1731338206802,38.70893303,219.75,219.71,3.1859]
[1731338207001,38.70893303,219.77,219.71,3.1859]
[1731338207701,23.776884,219.76,219.71,3.1859]
[1731338207902,38.70893303,219.81,219.71,41.89483303]
[1731338208078,38.70893303,219.79,219.71,41.89483303]
[1731338208288,23.776884,219.78,219.71,41.89483303]
[1731338208505,23.776884,219.76,219.71,3.1859]
[1731338208806,38.70893303,219.81,219.71,41.89483303]
[1731338209013,38.70893303,219.77,219.71,3.1859]
[1731338209298,23.776884,219.72,219.67,3.1865]
[1731338209502,23.776884,219.72,219.67,11.1529]
[1731338209702,23.776884,219.72,219.67,7.9664]
[1731338209916,23.776884,219.68,219.63,6.5318]
[1731338210082,23.776884,219.68,219.51,0.1]
[1731338210083,23.776884,219.63,219.58,3.1878]
[1731338210404,38.70893303,219.6,219.51,11.1611]
[1731338210582,38.70893303,219.62,219.55,38.70893303]
[1731338210779,38.70893303,219.61,219.51,27.1057]
[1731338210991,38.70893303,219.59,219.52,38.70893303]
[1731338211179,23.776884,219.58,219.52,38.70893303]
[1731338211380,23.776884,219.58,219.51,11.1611]
[1731338211590,23.776884,219.56,219.51,11.1611]
[1731338211997,38.70893303,219.55,219.51,7.9722]
[1731338212203,38.70893303,219.53,219.44,38.70893303]
[1731338212416,23.776884,219.47,219.43,3.19]
[1731338212704,23.776884,219.47,219.41,7.9758]
[1731338213005,38.70893303,219.46,219.41,7.9758]
[1731338213191,23.776884,219.41,219.23,11.1753]
[1731338213504,38.70893303,219.37,219.23,11.2753]
[1731338213680,23.776884,219.38,219.31,11.1713]
[1731338214292,23.776884,219.36,219.31,11.1713]
[1731338214494,23.776884,219.36,219.32,38.70893303]
[1731338214693,23.776884,219.4,219.32,38.70893303]
[1731338215906,38.70893303,219.37,219.33,7.9788]
[1731338216100,23.776884,219.36,219.33,11.1703]
[1731338216292,23.776884,219.36,219.33,7.9788]
[1731338216492,23.776884,219.34,219.27,11.1733]
[1731338216702,23.776884,219.29,219.27,11.1733]
[1731338216998,23.776884,219.34,219.27,11.1733]
[1731338216999,38.70893303,219.34,219.27,11.1733]
[1731338217213,23.776884,219.31,219.27,11.1733]
[1731338217381,23.776884,219.33,219.27,11.1733]
[1731338217984,23.776884,219.31,219.27,11.1733]
[1731338218286,46.61206796,219.3,219.27,11.1733]
[1731338218591,23.776884,219.29,219.27,11.1733]
[1731338218915,23.776884,219.27,219.21,7.9829]
[1731338219114,38.70893303,219.23,219.21,7.9829]
[1731338219299,23.776884,219.22,219.21,7.9829]
[1731338219607,23.776884,219.22,219.16,15.9699]
[1731338219784,23.776884,219.24,219.16,54.67883303]
[1731338220181,23.776884,219.22,219.16,15.9699]
[1731338220503,38.70893303,219.21,219.15,11.1794]
[1731338220694,38.70893303,219.23,219.15,11.1794]
[1731338221006,38.70893303,219.27,219.2,38.70893303]
[1731338221211,38.70893303,219.31,219.22,38.70893303]
[1731338221406,38.70893303,219.33,219.24,38.70893303]
[1731338221783,38.70893303,219.31,219.25,11.1744]
[1731338222090,4.6582,219.39,219.25,11.1744]
[1731338222091,38.90893303,219.36,219.25,11.1744]
[1731338222282,38.70893303,219.27,219.25,11.1744]
[1731338222704,38.70893303,219.29,219.25,11.1744]
[1731338223007,38.70893303,219.31,219.25,11.1744]
[1731338223306,38.70893303,219.29,219.25,11.1744]
[1731338223696,38.70893303,219.35,219.33,158.7]
[1731338223926,38.70893303,219.35,219.27,38.70893303]
[1731338224209,38.70893303,219.35,219.25,49.88333303]
[1731338224412,38.70893303,219.33,219.25,49.88333303]
[1731338224713,38.70893303,219.35,219.27,38.70893303]
[1731338224891,23.776884,219.34,219.27,38.70893303]
[1731338225080,23.776884,219.34,219.25,27.1379]
[1731338225081,38.70893303,219.31,219.25,27.1379]
[1731338225286,23.776884,219.3,219.25,27.1379]
[1731338225484,38.70893303,219.31,219.25,27.1379]
[1731338225899,0.1,219.42,219.25,27.1379]
[1731338225900,38.70893303,219.35,219.27,38.70893303]
[1731338226093,38.70893303,219.41,219.33,38.70893303]
[1731338226300,38.70893303,219.43,219.35,38.70893303]
[1731338226605,38.70893303,219.46,219.37,38.70893303]
[1731338226791,38.70893303,219.44,219.36,11.1688]
[1731338227186,6.4235,219.54,219.36,11.1688]
[1731338227187,38.70893303,219.46,219.37,38.70893303]
[1731338227424,38.70893303,219.53,219.45,38.70893303]
[1731338227598,38.70893303,219.55,219.47,38.70893303]
[1731338227786,38.70893303,219.53,219.45,38.70893303]
[1731338228111,38.70893303,219.49,219.41,38.70893303]
[1731338228415,38.70893303,219.47,219.39,38.70893303]
[1731338228585,38.70893303,219.45,219.38,20.0]
[1731338229107,23.776884,219.44,219.39,11.1672]
[1731338229419,38.70893303,219.41,219.39,11.1672]
[1731338229583,23.776884,219.4,219.39,11.1672]
[1731338229788,23.776884,219.4,219.34,3.1912]
[1731338230093,38.70893303,219.35,219.31,3.1917]
[1731338230296,23.776884,219.32,219.29,7.9801]
[1731338230796,4.557,219.44,219.29,7.9801]
[1731338230797,38.70893303,219.37,219.29,49.88113303]
[1731338230996,23.776884,219.36,219.29,49.88113303]
[1731338231599,38.70893303,219.35,219.29,11.1722]
[1731338231810,23.776884,219.32,219.29,11.1722]
[1731338232107,0.1,219.29,219.13,7.9861]
[1731338232314,0.1,219.3,219.13,7.9861]
[1731338232315,38.70893303,219.21,219.13,7.9861]
[1731338232492,23.776884,219.16,219.13,7.9861]
[1731338232693,38.70893303,219.19,219.13,7.9861]
[1731338232914,23.776884,219.18,219.13,7.9861]
[1731338233804,23.776884,219.2,219.13,7.9861]
[1731338234007,38.70893303,219.19,219.13,7.9861]
[1731338234191,23.776884,219.18,219.13,7.9861]
[1731338234589,38.70893303,219.17,219.13,7.9861]
[1731338234804,23.776884,219.14,219.07,7.988]
[1731338235016,38.70893303,219.13,219.07,7.988]
[1731338235220,23.776884,219.12,219.07,7.988]
[1731338236201,23.776884,219.12,219.06,38.70893303]
[1731338237220,23.776884,219.12,219.04,38.70893303]
[1731338237402,38.70893303,219.18,219.1,38.70893303]
[1731338237604,38.70893303,219.2,219.1,38.70893303]
[1731338237909,38.70893303,219.22,219.14,38.70893303]
[1731338238115,38.80893303,219.24,219.14,38.70893303]
[1731338238420,38.70893303,219.22,219.14,38.70893303]
[1731338239120,38.70893303,219.24,219.16,38.70893303]
[1731338239421,38.70893303,219.24,219.17,11.1784]
[1731338239628,38.70893303,219.24,219.18,20.0]
[1731338240223,38.70893303,219.24,219.17,11.1784]
[1731338240411,34.1889,219.37,219.03,0.1]
[1731338240412,38.70893303,219.22,219.15,23.1941]
[1731338240926,4.7608,219.26,219.18,38.70893303]
[1731338240927,38.70893303,219.26,219.18,38.70893303]
[1731338241222,38.70893303,219.24,219.15,11.1794]
[1731338241404,38.70893303,219.24,219.16,20.0]
[1731338241611,38.70893303,219.26,219.18,38.70893303]
[1731338241821,38.70893303,219.22,219.16,20.0]
[1731338242000,38.70893303,219.2,219.15,7.9853]
[1731338242202,38.70893303,219.18,219.12,3.1945]
[1731338242499,38.70893303,219.2,219.12,38.70893303]
[1731338243107,38.70893303,219.18,219.1,49.89083303]
[1731338243302,38.70893303,219.18,219.1,11.1819]
[1731338243503,38.70893303,219.16,219.1,7.9871]
[1731338243938,23.776884,219.15,219.1,7.9871]
[1731338244097,23.776884,219.15,219.06,38.70893303]
[1731338244301,23.776884,219.13,219.06,41.90423303]
[1731338244728,38.70893303,219.12,219.06,3.1953]
[1731338244907,23.776884,219.11,219.06,3.1953]
[1731338245104,23.776884,219.11,219.06,41.90423303]
[1731338245416,23.776884,219.09,219.02,38.70893303]
[1731338245598,23.776884,219.09,219.02,49.89493303]
[1731338245922,23.776884,219.09,219.03,20.0]
[1731338246106,23.776884,219.11,219.03,20.0]
[1731338246513,38.70893303,219.1,219.05,20.0]
[1731338246805,38.70893303,219.06,219.03,20.0]
[1731338247005,38.70893303,219.09,219.03,20.0]
[1731338247316,23.776884,219.12,219.06,20.0]
[1731338247622,38.70893303,219.18,219.11,31.1815]
[1731338247814,38.70893303,219.2,219.11,31.1815]
[1731338248011,38.70893303,219.18,219.11,31.1815]
[1731338248428,38.70893303,219.16,219.11,31.1815]
[1731338248812,0.1,219.26,219.14,20.0]
[1731338249011,38.70893303,219.17,219.11,11.1815]
[1731338249209,38.70893303,219.17,219.12,20.0]
[1731338249725,38.70893303,219.17,219.13,11.1805]
[1731338249932,38.70893303,219.17,219.13,7.9861]
[1731338250111,38.70893303,219.15,219.13,7.9861]
[1731338250523,38.70893303,219.15,219.08,11.1827]
[1731338250723,38.70893303,219.13,219.09,20.0]
[1731338250925,38.70893303,219.15,219.09,20.0]
[1731338251731,38.70893303,219.15,219.11,20.0]
[1731338251939,38.70893303,219.2,219.11,58.70893303]
[1731338252140,38.70893303,219.22,219.14,20.0]
[1731338252345,38.70893303,219.18,219.14,20.0]
[1731338252546,38.70893303,219.16,219.1,7.9872]
[1731338252840,38.70893303,219.14,219.11,20.0]
[1731338253038,38.70893303,219.14,219.1,7.9872]
[1731338253337,38.70893303,219.11,219.05,7.9888]
[1731338253542,38.70893303,219.07,219.01,15.9806]
[1731338254037,38.70893303,219.11,219.01,54.68953303]
[1731338254418,38.70893303,219.11,219.02,20.0]
[1731338255524,38.70893303,219.11,219.04,31.1851]
[1731338255727,38.70893303,219.11,219.04,47.1639]
[1731338257441,38.70893303,219.15,219.07,38.70893303]
[1731338257744,38.70893303,219.15,219.08,20.0]
[1731338258238,38.70893303,219.13,219.06,20.0]
[1731338258544,38.70893303,219.15,219.08,20.0]
[1731338258837,38.70893303,219.21,219.12,20.0]
[1731338259041,38.70893303,219.19,219.12,20.0]
[1731338259221,0.1,219.25,219.07,6.83146847]
[1731338259222,38.70893303,219.15,219.07,38.70893303]
[1731338259424,38.70893303,219.13,219.07,20.0]
[1731338259726,38.70893303,219.13,219.09,20.0]
[1731338260229,38.70893303,219.13,219.08,7.9878]
[1731338261039,38.70893303,219.17,219.09,38.70893303]
[1731338261251,4.562,219.2,219.09,20.0]
[1731338261465,38.70893303,219.21,219.13,11.1805]
[1731338261628,38.70893303,219.25,219.18,20.0]
[1731338262324,38.70893303,219.23,219.16,20.0]
[1731338262721,38.70893303,219.21,219.15,20.0]
[1731338262944,38.70893303,219.25,219.15,58.70893303]
[1731338263251,38.70893303,219.16,219.13,11.1805]
[1731338263451,38.70893303,219.18,219.13,7.9861]
[1731338264142,38.70893303,219.16,219.13,7.9861]
[1731338264442,38.70893303,219.14,219.13,7.9861]
[1731338265139,38.70893303,219.16,219.13,7.9861]
[1731338265649,38.70893303,219.16,219.14,20.0]
[1731338267250,38.70893303,219.16,219.15,3.1941]
[1731338268249,38.70893303,219.27,219.17,0.1]
[1731338268445,38.70893303,219.29,219.2,38.80893303]
[1731338268622,38.70893303,219.23,219.21,20.0]
[1731338268827,4.559,219.35,219.21,20.0]
[1731338269049,38.70893303,219.36,219.19,20.0]
[1731338269254,38.70893303,219.36,219.2,27.144]
[1731338269255,38.70893303,219.27,219.2,27.144]
[1731338269548,38.70893303,219.25,219.21,20.0]
[1731338270541,38.70893303,219.25,219.22,11.1759]
[1731338270740,38.70893303,219.25,219.23,20.0]
[1731338270948,1.39136562,219.4,219.23,20.0]
[1731338270949,38.70893303,219.31,219.23,20.0]
[1731338271144,38.70893303,219.33,219.25,0.1]
[1731338271430,38.70893303,219.35,219.27,38.70893303]
[1731338271649,38.70893303,219.35,219.28,20.0]
[1731338272144,38.70893303,219.37,219.29,0.1]
[1731338272349,38.70893303,219.33,219.32,20.0]
[1731338272531,38.70893303,219.37,219.32,20.0]
[1731338272727,38.70893303,219.39,219.34,20.0]